[Event "*** Titled Tuesday Blitz"]
[Site "Chess.com"]
[Date "2020.05.19"]
[Round "6"]
[White "vyprd"]
[Black "spela91"]
[Result "1-0"]
[WhiteElo "2192"]
[BlackElo "2018"]
[TimeControl "180+1"]
[EndTime "13:06:57 PDT"]
[Termination "vyprd won by resignation"]

1. e4 {[%clk 0:03:00.9]} 1... c5 {[%clk 0:02:59.9]} 2. Nf3 {[%clk 0:02:59.9]}
2... Nc6 {[%clk 0:03:00.1]} 3. d4 {[%clk 0:02:59.5]} 3... cxd4 {[%clk 0:03:01]}
4. Nxd4 {[%clk 0:02:59.8]} 4... Qc7 {[%clk 0:03:01.5]} 5. Nc3 {[%clk 0:02:58.8]}
5... e6 {[%clk 0:03:01.5]} 6. Be2 {[%clk 0:02:58.7]} 6... Nf6 {[%clk 0:03:00.6]}
7. O-O {[%clk 0:02:58.6]} 7... a6 {[%clk 0:03:00.4]} 8. Be3 {[%clk 0:02:57.9]}
8... b5 {[%clk 0:02:59.8]} 9. Nxc6 {[%clk 0:02:56.9]} 9... dxc6 {[%clk 0:02:57]}
10. f4 {[%clk 0:02:54.6]} 10... Be7 {[%clk 0:02:48.4]} 11. e5 {[%clk 0:02:54.5]}
11... Nd5 {[%clk 0:02:47.7]} 12. Nxd5 {[%clk 0:02:53.6]} 12... cxd5 {[%clk
0:02:45.6]} 13. Bd3 {[%clk 0:02:50.9]} 13... g6 {[%clk 0:02:42.9]} 14. Qd2
{[%clk 0:02:45.9]} 14... Bd7 {[%clk 0:02:34.6]} 15. b4 {[%clk 0:02:45.1]} 15...
Rc8 {[%clk 0:02:30.2]} 16. Bd4 {[%clk 0:02:44.2]} 16... Rb8 {[%clk 0:02:04.3]}
17. a3 {[%clk 0:02:43.1]} 17... Ra8 {[%clk 0:01:45.3]} 18. Kh1 {[%clk
0:02:36.9]} 18... a5 {[%clk 0:01:42.4]} 19. Rfb1 {[%clk 0:02:31.9]} 19... axb4
{[%clk 0:01:30.4]} 20. axb4 {[%clk 0:02:32.8]} 20... O-O {[%clk 0:01:29.8]} 21.
g4 {[%clk 0:02:25.8]} 21... Ra4 {[%clk 0:01:19]} 22. f5 {[%clk 0:02:17]} 22...
Rfa8 {[%clk 0:00:59.5]} 23. f6 {[%clk 0:02:13.7]} 23... Bf8 {[%clk 0:00:59.6]}
24. g5 {[%clk 0:02:09.4]} 24... Rxa1 {[%clk 0:00:45]} 25. Rxa1 {[%clk
0:02:09.2]} 25... Rxa1+ {[%clk 0:00:43.1]} 26. Bxa1 {[%clk 0:02:10.1]} 26... Qa7
{[%clk 0:00:41.4]} 27. Bb2 {[%clk 0:02:05.7]} 27... Qa4 {[%clk 0:00:34.2]} 28.
c3 {[%clk 0:02:04.3]} 28... Qb3 {[%clk 0:00:21.4]} 29. Qc2 {[%clk 0:02:03.7]}
29... Qa2 {[%clk 0:00:18.9]} 30. Bc1 {[%clk 0:02:02.6]} 30... Bc6 {[%clk
0:00:18.3]} 31. Qxa2 {[%clk 0:02:02.1]} 1-0

[Event "*** Titled Tuesday Blitz"]
[Site "Chess.com"]
[Date "2020.05.19"]
[Round "6"]
[White "PlayChessSimple"]
[Black "Caterpiller35"]
[Result "1/2-1/2"]
[WhiteElo "2488"]
[BlackElo "2362"]
[TimeControl "180+1"]
[EndTime "13:06:58 PDT"]
[Termination "Game drawn by repetition"]

1. e4 {[%clk 0:03:00.9]} 1... c5 {[%clk 0:02:59.2]} 2. Nf3 {[%clk 0:03:00.2]}
2... Nc6 {[%clk 0:02:59.2]} 3. c3 {[%clk 0:02:59.1]} 3... Nf6 {[%clk 0:02:58.7]}
4. e5 {[%clk 0:02:59.4]} 4... Nd5 {[%clk 0:02:55.9]} 5. Bc4 {[%clk 0:02:59.9]}
5... e6 {[%clk 0:02:51.7]} 6. d4 {[%clk 0:02:59]} 6... cxd4 {[%clk 0:02:51.6]}
7. cxd4 {[%clk 0:02:59.1]} 7... d6 {[%clk 0:02:52.1]} 8. Qe2 {[%clk 0:02:59.2]}
8... Be7 {[%clk 0:02:48.1]} 9. O-O {[%clk 0:02:59.5]} 9... O-O {[%clk
0:02:47.8]} 10. Rd1 {[%clk 0:03:00]} 10... Bd7 {[%clk 0:02:47.4]} 11. Nc3 {[%clk
0:02:56.5]} 11... Nxc3 {[%clk 0:02:46.5]} 12. bxc3 {[%clk 0:02:56.6]} 12... Qa5
{[%clk 0:02:45.5]} 13. exd6 {[%clk 0:02:47.7]} 13... Bxd6 {[%clk 0:02:43.5]} 14.
d5 {[%clk 0:02:47.9]} 14... exd5 {[%clk 0:02:34]} 15. Rxd5 {[%clk 0:02:37.1]}
15... Qc7 {[%clk 0:02:18.7]} 16. Qd2 {[%clk 0:01:38.6]} 16... Be6 {[%clk
0:01:20.3]} 17. Rg5 {[%clk 0:01:37.6]} 17... Bxc4 {[%clk 0:00:57.9]} 18. Rxg7+
{[%clk 0:01:37.2]} 18... Kxg7 {[%clk 0:00:56.9]} 19. Qh6+ {[%clk 0:01:36.8]}
19... Kh8 {[%clk 0:00:49.9]} 20. Qf6+ {[%clk 0:01:35.2]} 20... Kg8 {[%clk
0:00:47.1]} 21. Qg5+ {[%clk 0:01:22.5]} 21... Kh8 {[%clk 0:00:45.1]} 22. Qf6+
{[%clk 0:01:22.7]} 22... Kg8 {[%clk 0:00:45.1]} 23. Qg5+ {[%clk 0:01:22.9]}
23... Kh8 {[%clk 0:00:45.3]} 24. Qf6+ {[%clk 0:01:23]} 1/2-1/2

[Event "*** Titled Tuesday Blitz"]
[Site "Chess.com"]
[Date "2020.05.19"]
[Round "6"]
[White "Grootneus"]
[Black "Everyfishknows"]
[Result "1-0"]
[WhiteElo "2229"]
[BlackElo "2385"]
[TimeControl "180+1"]
[EndTime "13:07:01 PDT"]
[Termination "Grootneus won on time"]

1. e4 {[%clk 0:03:00.9]} 1... c6 {[%clk 0:02:50.3]} 2. d4 {[%clk 0:03:00.1]}
2... d5 {[%clk 0:02:49.9]} 3. Nc3 {[%clk 0:03:00.8]} 3... dxe4 {[%clk
0:02:49.3]} 4. Nxe4 {[%clk 0:03:01.7]} 4... Nf6 {[%clk 0:02:48]} 5. Nxf6+ {[%clk
0:03:01.8]} 5... exf6 {[%clk 0:02:47.8]} 6. c3 {[%clk 0:03:02.7]} 6... Bd6
{[%clk 0:02:41.2]} 7. Bd3 {[%clk 0:03:03]} 7... O-O {[%clk 0:02:40.7]} 8. Qc2
{[%clk 0:03:03.6]} 8... g6 {[%clk 0:02:36]} 9. Ne2 {[%clk 0:03:02.4]} 9... Nd7
{[%clk 0:02:32.7]} 10. h4 {[%clk 0:03:02.3]} 10... f5 {[%clk 0:02:07.4]} 11. Be3
{[%clk 0:02:59.4]} 11... Nf6 {[%clk 0:02:01.4]} 12. Bg5 {[%clk 0:02:54.9]} 12...
Be7 {[%clk 0:01:50.8]} 13. O-O-O {[%clk 0:02:54.6]} 13... Nd5 {[%clk 0:01:48.1]}
14. Bxe7 {[%clk 0:02:49.5]} 14... Qxe7 {[%clk 0:01:49]} 15. h5 {[%clk
0:02:49.7]} 15... Qg5+ {[%clk 0:01:32.7]} 16. Kb1 {[%clk 0:02:47.5]} 16... Qxg2
{[%clk 0:01:29.8]} 17. hxg6 {[%clk 0:02:44.2]} 17... hxg6 {[%clk 0:01:11.4]} 18.
Qd2 {[%clk 0:02:24.1]} 18... Kg7 {[%clk 0:00:29.8]} 19. Rdg1 {[%clk 0:02:09]}
19... Qxf2 {[%clk 0:00:25.7]} 20. Qh6+ {[%clk 0:01:59.5]} 20... Kf6 {[%clk
0:00:25.2]} 21. Qxf8 {[%clk 0:01:55.8]} 21... Be6 {[%clk 0:00:07.7]} 22. Qxa8
{[%clk 0:01:54.2]} 22... Ne3 {[%clk 0:00:02.8]} 23. Qd8+ {[%clk 0:01:53.4]} 1-0

[Event "*** Titled Tuesday Blitz"]
[Site "Chess.com"]
[Date "2020.05.19"]
[Round "6"]
[White "EmeseBalogh"]
[Black "Zmof"]
[Result "0-1"]
[WhiteElo "1946"]
[BlackElo "2243"]
[TimeControl "180+1"]
[EndTime "13:07:01 PDT"]
[Termination "Zmof won by resignation"]

1. e4 {[%clk 0:02:59.3]} 1... c5 {[%clk 0:02:55.4]} 2. Nc3 {[%clk 0:02:53]} 2...
a6 {[%clk 0:02:54.8]} 3. g3 {[%clk 0:02:52.3]} 3... b5 {[%clk 0:02:54.3]} 4. Bg2
{[%clk 0:02:51.5]} 4... Bb7 {[%clk 0:02:52.9]} 5. d3 {[%clk 0:02:51.6]} 5... e6
{[%clk 0:02:52.7]} 6. Be3 {[%clk 0:02:50.9]} 6... d5 {[%clk 0:02:52.4]} 7. exd5
{[%clk 0:02:48.9]} 7... exd5 {[%clk 0:02:53]} 8. d4 {[%clk 0:02:48.7]} 8... c4
{[%clk 0:02:52.4]} 9. Nce2 {[%clk 0:02:48.8]} 9... Nf6 {[%clk 0:02:49.8]} 10. h3
{[%clk 0:02:47.2]} 10... Be7 {[%clk 0:02:44.3]} 11. Nf3 {[%clk 0:02:46]} 11...
O-O {[%clk 0:02:44.2]} 12. O-O {[%clk 0:02:44.9]} 12... Nbd7 {[%clk 0:02:45.1]}
13. c3 {[%clk 0:02:42.9]} 13... Re8 {[%clk 0:02:42.8]} 14. Qd2 {[%clk
0:02:41.3]} 14... Nb6 {[%clk 0:02:40.9]} 15. a3 {[%clk 0:02:38.9]} 15... Ne4
{[%clk 0:02:40]} 16. Qc2 {[%clk 0:02:35.6]} 16... a5 {[%clk 0:02:26.4]} 17. Rae1
{[%clk 0:02:28.3]} 17... b4 {[%clk 0:02:24.2]} 18. axb4 {[%clk 0:02:26.9]} 18...
axb4 {[%clk 0:02:24.9]} 19. Nd2 {[%clk 0:01:32.1]} 19... b3 {[%clk 0:02:11.8]}
20. Qc1 {[%clk 0:01:23.7]} 20... Ra2 {[%clk 0:01:55.7]} 21. Nxe4 {[%clk
0:01:20.7]} 21... dxe4 {[%clk 0:01:55.5]} 22. Qd2 {[%clk 0:01:16.2]} 22... Na4
{[%clk 0:01:46.5]} 23. Rb1 {[%clk 0:01:15.1]} 23... Ba3 {[%clk 0:01:45.8]} 24.
Nc1 {[%clk 0:00:57]} 24... Rxb2 {[%clk 0:01:42.1]} 25. Rxb2 {[%clk 0:00:48.5]}
25... Bxb2 {[%clk 0:01:42.4]} 26. Ne2 {[%clk 0:00:42.4]} 26... Qa5 {[%clk
0:01:41.8]} 0-1

[Event "*** Titled Tuesday Blitz"]
[Site "Chess.com"]
[Date "2020.05.19"]
[Round "6"]
[White "SuperCheese"]
[Black "TheoSlade"]
[Result "1-0"]
[WhiteElo "2567"]
[BlackElo "2402"]
[TimeControl "180+1"]
[EndTime "13:07:09 PDT"]
[Termination "SuperCheese won by resignation"]

1. d4 {[%clk 0:03:00.9]} 1... Nf6 {[%clk 0:02:59.2]} 2. c4 {[%clk 0:02:59.5]}
2... e6 {[%clk 0:02:59.7]} 3. Nc3 {[%clk 0:02:59.4]} 3... Bb4 {[%clk 0:03:00]}
4. a3 {[%clk 0:02:57.8]} 4... Bxc3+ {[%clk 0:03:00]} 5. bxc3 {[%clk 0:02:58.7]}
5... c5 {[%clk 0:03:00.3]} 6. f3 {[%clk 0:02:58.1]} 6... O-O {[%clk 0:02:53.8]}
7. e4 {[%clk 0:02:57.6]} 7... Ne8 {[%clk 0:02:54.2]} 8. Bd3 {[%clk 0:02:53.5]}
8... d6 {[%clk 0:02:51.4]} 9. f4 {[%clk 0:02:52.9]} 9... f5 {[%clk 0:02:48.7]}
10. Nf3 {[%clk 0:02:43.9]} 10... fxe4 {[%clk 0:02:44.3]} 11. Bxe4 {[%clk
0:02:43.8]} 11... Nf6 {[%clk 0:02:41.8]} 12. Bd3 {[%clk 0:02:44.2]} 12... cxd4
{[%clk 0:02:32.1]} 13. cxd4 {[%clk 0:02:42.9]} 13... d5 {[%clk 0:02:32.5]} 14.
O-O {[%clk 0:02:40.1]} 14... Nc6 {[%clk 0:02:26.4]} 15. Qe2 {[%clk 0:02:31.6]}
15... dxc4 {[%clk 0:02:23.7]} 16. Bxc4 {[%clk 0:02:32.5]} 16... Nxd4 {[%clk
0:02:24.2]} 17. Nxd4 {[%clk 0:02:31.4]} 17... Qxd4+ {[%clk 0:02:24.1]} 18. Be3
{[%clk 0:02:31.9]} 18... Qd8 {[%clk 0:02:17.4]} 19. Rad1 {[%clk 0:02:29.3]}
19... Qe7 {[%clk 0:02:15.3]} 20. f5 {[%clk 0:02:25.8]} 20... Kh8 {[%clk
0:02:01.6]} 21. Bd4 {[%clk 0:02:22]} 21... e5 {[%clk 0:01:22.5]} 22. Bxe5 {[%clk
0:02:19.3]} 22... Bd7 {[%clk 0:01:22]} 23. Bxf6 {[%clk 0:02:06.4]} 23... Qxe2
{[%clk 0:01:13]} 24. Bxe2 {[%clk 0:02:05]} 24... Ba4 {[%clk 0:01:08.4]} 25. Rd4
{[%clk 0:02:00]} 25... Rae8 {[%clk 0:01:02.2]} 26. Bh5 {[%clk 0:01:41.7]} 26...
Rxf6 {[%clk 0:00:29.4]} 27. Bxe8 {[%clk 0:01:38.4]} 27... Bxe8 {[%clk
0:00:25.6]} 28. Rd8 {[%clk 0:01:37.1]} 28... Rf8 {[%clk 0:00:26.1]} 29. Re1
{[%clk 0:01:35.5]} 29... Kg8 {[%clk 0:00:25.9]} 30. Rexe8 {[%clk 0:01:33.1]}
30... Rxe8 {[%clk 0:00:26.7]} 31. Rxe8+ {[%clk 0:01:33.6]} 31... Kf7 {[%clk
0:00:26.6]} 32. Rb8 {[%clk 0:01:33.7]} 1-0

[Event "*** Titled Tuesday Blitz"]
[Site "Chess.com"]
[Date "2020.05.19"]
[Round "6"]
[White "OsorioFernando"]
[Black "Azoulas1"]
[Result "1-0"]
[WhiteElo "2250"]
[BlackElo "1954"]
[TimeControl "180+1"]
[EndTime "13:07:10 PDT"]
[Termination "OsorioFernando won by checkmate"]

1. e4 {[%clk 0:03:00.6]} 1... c5 {[%clk 0:02:59.5]} 2. Nc3 {[%clk 0:02:59.9]}
2... e6 {[%clk 0:02:58.9]} 3. g3 {[%clk 0:03:00.8]} 3... Nc6 {[%clk 0:02:57.7]}
4. Bg2 {[%clk 0:03:00.8]} 4... g6 {[%clk 0:02:55.7]} 5. d3 {[%clk 0:03:00.1]}
5... Bg7 {[%clk 0:02:55.3]} 6. Be3 {[%clk 0:03:00.2]} 6... d6 {[%clk 0:02:52.9]}
7. Qd2 {[%clk 0:02:59.9]} 7... a6 {[%clk 0:02:49.6]} 8. Nge2 {[%clk 0:02:59.1]}
8... b5 {[%clk 0:02:48.7]} 9. O-O {[%clk 0:02:54.9]} 9... Bb7 {[%clk 0:02:47.5]}
10. Rae1 {[%clk 0:02:53.2]} 10... Rc8 {[%clk 0:02:45.7]} 11. h3 {[%clk
0:02:49.3]} 11... Nd4 {[%clk 0:02:39.5]} 12. Nc1 {[%clk 0:02:47.8]} 12... Ne7
{[%clk 0:02:27.8]} 13. Nd1 {[%clk 0:02:46.7]} 13... O-O {[%clk 0:02:22.1]} 14.
c3 {[%clk 0:02:45.9]} 14... Ndc6 {[%clk 0:02:20.2]} 15. Bh6 {[%clk 0:02:46.1]}
15... Qb6 {[%clk 0:02:12]} 16. Bxg7 {[%clk 0:02:44.4]} 16... Kxg7 {[%clk
0:02:10.2]} 17. Ne3 {[%clk 0:02:44.2]} 17... Rcd8 {[%clk 0:02:06]} 18. f4 {[%clk
0:02:38.5]} 18... d5 {[%clk 0:02:03.5]} 19. f5 {[%clk 0:02:34.9]} 19... exf5
{[%clk 0:01:40.5]} 20. exf5 {[%clk 0:02:20.4]} 20... Kh8 {[%clk 0:01:37.6]} 21.
f6 {[%clk 0:02:16.2]} 21... Ng8 {[%clk 0:01:35.5]} 22. Nxd5 {[%clk 0:02:11.3]}
22... Qa7 {[%clk 0:01:25]} 23. Ne7 {[%clk 0:02:05.7]} 23... c4+ {[%clk
0:01:17.7]} 24. d4 {[%clk 0:01:58.9]} 24... Qb6 {[%clk 0:01:07.4]} 25. Nxg8
{[%clk 0:01:38.3]} 25... Rxg8 {[%clk 0:01:07.4]} 26. Re4 {[%clk 0:01:28]} 26...
b4 {[%clk 0:00:55.5]} 27. Qh6 {[%clk 0:01:19.6]} 27... bxc3 {[%clk 0:00:50.8]}
28. Qxh7+ {[%clk 0:01:18]} 28... Kxh7 {[%clk 0:00:49.1]} 29. Rh4# {[%clk
0:01:18.9]} 1-0

[Event "*** Titled Tuesday Blitz"]
[Site "Chess.com"]
[Date "2020.05.19"]
[Round "6"]
[White "GOGIEFF"]
[Black "Zurability"]
[Result "1-0"]
[WhiteElo "2920"]
[BlackElo "2692"]
[TimeControl "180+1"]
[EndTime "13:07:11 PDT"]
[Termination "GOGIEFF won by resignation"]

1. d4 {[%clk 0:03:00.9]} 1... Nf6 {[%clk 0:02:59]} 2. c4 {[%clk 0:03:00.9]} 2...
e6 {[%clk 0:02:58.6]} 3. Nc3 {[%clk 0:03:00.9]} 3... Bb4 {[%clk 0:02:58.4]} 4.
Qc2 {[%clk 0:03:01.1]} 4... O-O {[%clk 0:02:57.5]} 5. Bg5 {[%clk 0:03:00.5]}
5... c5 {[%clk 0:02:52.3]} 6. e3 {[%clk 0:02:59.4]} 6... cxd4 {[%clk 0:02:42.9]}
7. exd4 {[%clk 0:03:00.3]} 7... d5 {[%clk 0:02:43.4]} 8. Nf3 {[%clk 0:02:57.2]}
8... dxc4 {[%clk 0:02:38.9]} 9. Bxc4 {[%clk 0:02:55.8]} 9... Nc6 {[%clk
0:02:39.8]} 10. Rd1 {[%clk 0:02:55]} 10... h6 {[%clk 0:02:36.8]} 11. Bh4 {[%clk
0:02:54.3]} 11... Be7 {[%clk 0:02:36.6]} 12. O-O {[%clk 0:02:53.5]} 12... Nb4
{[%clk 0:02:33.1]} 13. Qe2 {[%clk 0:02:52.2]} 13... Bd7 {[%clk 0:02:10.8]} 14.
Bxf6 {[%clk 0:02:36.1]} 14... Bxf6 {[%clk 0:02:08.5]} 15. a3 {[%clk 0:02:36.8]}
15... Nc6 {[%clk 0:01:44.9]} 16. d5 {[%clk 0:02:36]} 16... exd5 {[%clk
0:01:39.5]} 17. Nxd5 {[%clk 0:02:36.9]} 17... Bg4 {[%clk 0:01:33.5]} 18. Ne3
{[%clk 0:02:27.6]} 18... Nd4 {[%clk 0:01:27.5]} 19. Rxd4 {[%clk 0:02:20.4]}
19... Bxd4 {[%clk 0:00:58]} 20. Nxg4 {[%clk 0:02:19.3]} 20... Qb6 {[%clk
0:00:58.9]} 21. Nxd4 {[%clk 0:02:12.2]} 21... Qxd4 {[%clk 0:00:58.1]} 22. Rd1
{[%clk 0:02:12.2]} 22... Qb6 {[%clk 0:00:52.6]} 23. h4 {[%clk 0:02:03.9]} 23...
Rae8 {[%clk 0:00:45.5]} 24. Ne3 {[%clk 0:02:03.2]} 24... Re5 {[%clk 0:00:39.3]}
25. Rd7 {[%clk 0:02:00.8]} 25... Qc6 {[%clk 0:00:38.1]} 26. Qd3 {[%clk
0:01:58.3]} 26... b5 {[%clk 0:00:33.2]} 27. Bb3 {[%clk 0:01:51.9]} 27... Qc1+
{[%clk 0:00:32]} 28. Kh2 {[%clk 0:01:51.9]} 28... Qxb2 {[%clk 0:00:30.6]} 29.
Rxf7 {[%clk 0:01:48.9]} 1-0

[Event "*** Titled Tuesday Blitz"]
[Site "Chess.com"]
[Date "2020.05.19"]
[Round "6"]
[White "djano"]
[Black "WeAintSurePal"]
[Result "1-0"]
[WhiteElo "2454"]
[BlackElo "2300"]
[TimeControl "180+1"]
[EndTime "13:07:15 PDT"]
[Termination "djano won by resignation"]

1. Nf3 {[%clk 0:03:00.9]} 1... e6 {[%clk 0:02:57.1]} 2. d4 {[%clk 0:03:00.1]}
2... Nf6 {[%clk 0:02:54.6]} 3. Bf4 {[%clk 0:02:59.8]} 3... d5 {[%clk 0:02:53.6]}
4. e3 {[%clk 0:02:59.5]} 4... c5 {[%clk 0:02:50.9]} 5. Nbd2 {[%clk 0:02:58.8]}
5... Nc6 {[%clk 0:02:50.7]} 6. Bd3 {[%clk 0:02:52.7]} 6... Bd6 {[%clk
0:02:31.6]} 7. dxc5 {[%clk 0:02:49.3]} 7... Bxc5 {[%clk 0:02:29.9]} 8. O-O
{[%clk 0:02:45.4]} 8... O-O {[%clk 0:02:28.9]} 9. c3 {[%clk 0:02:41.8]} 9... Bd6
{[%clk 0:02:23.7]} 10. Bg3 {[%clk 0:02:30.3]} 10... Bxg3 {[%clk 0:02:22.3]} 11.
hxg3 {[%clk 0:02:29.8]} 11... e5 {[%clk 0:02:22.6]} 12. e4 {[%clk 0:02:29.7]}
12... d4 {[%clk 0:02:10.7]} 13. cxd4 {[%clk 0:02:28.6]} 13... Nxd4 {[%clk
0:02:10.8]} 14. Nxd4 {[%clk 0:02:28.6]} 14... Qxd4 {[%clk 0:02:11.5]} 15. Nf3
{[%clk 0:02:20.1]} 15... Qd6 {[%clk 0:02:09.9]} 16. Bc2 {[%clk 0:02:15.9]} 16...
Qxd1 {[%clk 0:02:07]} 17. Rfxd1 {[%clk 0:02:16.8]} 17... Bg4 {[%clk 0:02:02.9]}
18. Rac1 {[%clk 0:02:06.1]} 18... Rac8 {[%clk 0:02:00.9]} 19. Bb1 {[%clk
0:01:51.1]} 19... h6 {[%clk 0:01:58.9]} 20. a4 {[%clk 0:01:47.4]} 20... Bh5
{[%clk 0:01:39.1]} 21. a5 {[%clk 0:01:38.6]} 21... Rfe8 {[%clk 0:01:27.1]} 22.
b4 {[%clk 0:01:31.8]} 22... Bg6 {[%clk 0:01:25]} 23. Rxc8 {[%clk 0:01:28.9]}
23... Rxc8 {[%clk 0:01:24]} 24. Nxe5 {[%clk 0:01:29.5]} 24... Bxe4 {[%clk
0:01:23.6]} 25. Bxe4 {[%clk 0:01:28.8]} 25... Nxe4 {[%clk 0:01:24.5]} 26. g4
{[%clk 0:01:23.2]} 26... Nf6 {[%clk 0:01:13.4]} 27. f3 {[%clk 0:01:12.6]} 27...
Rc2 {[%clk 0:01:10.4]} 28. Rd8+ {[%clk 0:01:09.2]} 28... Kh7 {[%clk 0:01:10.6]}
29. Nxf7 {[%clk 0:01:05.9]} 29... Rc4 {[%clk 0:01:09]} 30. Rh8+ {[%clk
0:00:56.6]} 30... Kg6 {[%clk 0:01:06.9]} 31. Ne5+ {[%clk 0:00:57.5]} 1-0

[Event "*** Titled Tuesday Blitz"]
[Site "Chess.com"]
[Date "2020.05.19"]
[Round "6"]
[White "Vesper2018"]
[Black "Asteroxylon"]
[Result "1-0"]
[WhiteElo "2266"]
[BlackElo "2382"]
[TimeControl "180+1"]
[EndTime "13:07:19 PDT"]
[Termination "Vesper2018 won by checkmate"]

1. e4 {[%clk 0:03:00.2]} 1... e5 {[%clk 0:02:59.6]} 2. Nf3 {[%clk 0:02:59.1]}
2... Nc6 {[%clk 0:03:00.1]} 3. Bc4 {[%clk 0:02:59]} 3... Nf6 {[%clk 0:02:59.4]}
4. d3 {[%clk 0:02:59.2]} 4... Bc5 {[%clk 0:02:57]} 5. O-O {[%clk 0:02:57.8]}
5... a6 {[%clk 0:02:55]} 6. c3 {[%clk 0:02:54.6]} 6... d6 {[%clk 0:02:51.9]} 7.
d4 {[%clk 0:02:51.7]} 7... exd4 {[%clk 0:02:35.2]} 8. cxd4 {[%clk 0:02:51.2]}
8... Bb6 {[%clk 0:02:32]} 9. h3 {[%clk 0:02:47.1]} 9... O-O {[%clk 0:02:26.3]}
10. Nc3 {[%clk 0:02:42.3]} 10... h6 {[%clk 0:02:21.7]} 11. Bb3 {[%clk
0:02:39.3]} 11... Re8 {[%clk 0:02:21.3]} 12. Bc2 {[%clk 0:02:38.5]} 12... Nb4
{[%clk 0:02:18.4]} 13. Bb1 {[%clk 0:02:38.4]} 13... c5 {[%clk 0:02:14.7]} 14. d5
{[%clk 0:02:36.1]} 14... a5 {[%clk 0:01:57.6]} 15. Bf4 {[%clk 0:02:17.6]} 15...
Bc7 {[%clk 0:01:53.9]} 16. Re1 {[%clk 0:02:13.6]} 16... Ra6 {[%clk 0:01:39.8]}
17. a3 {[%clk 0:02:12.5]} 17... g5 {[%clk 0:01:30.3]} 18. Bg3 {[%clk 0:02:05]}
18... Nh5 {[%clk 0:01:29.9]} 19. axb4 {[%clk 0:02:01]} 19... axb4 {[%clk
0:01:30.2]} 20. Rxa6 {[%clk 0:01:59]} 20... bxa6 {[%clk 0:01:31.1]} 21. Ne2
{[%clk 0:01:55.6]} 21... f5 {[%clk 0:01:31]} 22. exf5 {[%clk 0:01:52]} 22... Qf6
{[%clk 0:01:30.9]} 23. Nh2 {[%clk 0:01:43.6]} 23... Qxb2 {[%clk 0:01:28.2]} 24.
Ng4 {[%clk 0:01:32.8]} 24... Qg7 {[%clk 0:01:23.9]} 25. Qd3 {[%clk 0:01:24.9]}
25... Nxg3 {[%clk 0:01:11.4]} 26. fxg3 {[%clk 0:01:18.2]} 26... h5 {[%clk
0:00:52.6]} 27. f6 {[%clk 0:01:17.6]} 27... Qh8 {[%clk 0:00:43.9]} 28. Qg6+
{[%clk 0:01:14.5]} 28... Kf8 {[%clk 0:00:44.4]} 29. Nh6 {[%clk 0:01:12.6]} 29...
Bd8 {[%clk 0:00:42.3]} 30. Qf7# {[%clk 0:01:11.6]} 1-0

[Event "*** Titled Tuesday Blitz"]
[Site "Chess.com"]
[Date "2020.05.19"]
[Round "6"]
[White "CyberneticLion"]
[Black "ketster"]
[Result "0-1"]
[WhiteElo "2483"]
[BlackElo "2373"]
[TimeControl "180+1"]
[EndTime "13:07:20 PDT"]
[Termination "ketster won by resignation"]

1. e4 {[%clk 0:03:00.9]} 1... e5 {[%clk 0:02:59]} 2. Nf3 {[%clk 0:03:00.3]} 2...
Nc6 {[%clk 0:02:58.8]} 3. d4 {[%clk 0:02:58.1]} 3... exd4 {[%clk 0:02:58]} 4.
Nxd4 {[%clk 0:02:59]} 4... Bb4+ {[%clk 0:02:57.1]} 5. c3 {[%clk 0:02:57.1]} 5...
Bc5 {[%clk 0:02:55.1]} 6. Be3 {[%clk 0:02:57.1]} 6... Bb6 {[%clk 0:02:54.8]} 7.
Nf5 {[%clk 0:02:56.8]} 7... g6 {[%clk 0:02:54.4]} 8. Bxb6 {[%clk 0:02:54.8]}
8... axb6 {[%clk 0:02:54.1]} 9. Ne3 {[%clk 0:02:55]} 9... Nf6 {[%clk 0:02:48.3]}
10. Nd2 {[%clk 0:02:54.2]} 10... Qe7 {[%clk 0:02:46.6]} 11. f3 {[%clk
0:02:53.3]} 11... d5 {[%clk 0:02:42.4]} 12. Bd3 {[%clk 0:02:31.9]} 12... dxe4
{[%clk 0:02:35.2]} 13. Nxe4 {[%clk 0:02:32.8]} 13... Nxe4 {[%clk 0:02:34]} 14.
Bxe4 {[%clk 0:02:31.8]} 14... Be6 {[%clk 0:02:19.1]} 15. O-O {[%clk 0:02:30.6]}
15... Rd8 {[%clk 0:02:16.5]} 16. Qa4 {[%clk 0:02:21.3]} 16... Qc5 {[%clk
0:02:15.2]} 17. Rfe1 {[%clk 0:02:17.4]} 17... O-O {[%clk 0:02:13.5]} 18. Kh1
{[%clk 0:02:15.4]} 18... Rd2 {[%clk 0:02:09.4]} 19. Bc2 {[%clk 0:02:04.4]} 19...
Rfd8 {[%clk 0:01:59.2]} 20. Qe4 {[%clk 0:01:55.4]} 20... Qg5 {[%clk 0:01:52.5]}
21. Rad1 {[%clk 0:01:38.8]} 21... Bf5 {[%clk 0:01:47]} 22. Rxd2 {[%clk
0:00:22.8]} 22... Bxe4 {[%clk 0:01:45.7]} 23. Rxd8+ {[%clk 0:00:22.1]} 23...
Qxd8 {[%clk 0:01:41.1]} 24. Bxe4 {[%clk 0:00:17.3]} 24... Qd2 {[%clk 0:01:40.6]}
25. Nc2 {[%clk 0:00:17.8]} 25... f5 {[%clk 0:01:36.9]} 26. Bxc6 {[%clk
0:00:17.1]} 26... bxc6 {[%clk 0:01:36.6]} 27. Re8+ {[%clk 0:00:16.9]} 27... Kf7
{[%clk 0:01:36.4]} 0-1

[Event "*** Titled Tuesday Blitz"]
[Site "Chess.com"]
[Date "2020.05.19"]
[Round "6"]
[White "m-garcett"]
[Black "rakshi2005"]
[Result "0-1"]
[WhiteElo "2101"]
[BlackElo "2277"]
[TimeControl "180+1"]
[EndTime "13:07:23 PDT"]
[Termination "rakshi2005 won by resignation"]

1. e4 {[%clk 0:03:00.9]} 1... e5 {[%clk 0:02:59.3]} 2. Nf3 {[%clk 0:03:00.4]}
2... Nc6 {[%clk 0:02:56.1]} 3. Bb5 {[%clk 0:02:59.8]} 3... f5 {[%clk 0:02:55.6]}
4. Qe2 {[%clk 0:02:42]} 4... fxe4 {[%clk 0:02:48.8]} 5. Qxe4 {[%clk 0:02:40.1]}
5... Nf6 {[%clk 0:02:48.1]} 6. Qe2 {[%clk 0:02:39.9]} 6... d6 {[%clk 0:02:46.2]}
7. Nc3 {[%clk 0:02:36.1]} 7... Be7 {[%clk 0:02:42]} 8. Bc4 {[%clk 0:02:35.3]}
8... Na5 {[%clk 0:02:39.9]} 9. Bb5+ {[%clk 0:02:33.6]} 9... c6 {[%clk
0:02:38.9]} 10. Ba4 {[%clk 0:02:31.8]} 10... b5 {[%clk 0:02:36.3]} 11. Bb3
{[%clk 0:02:10.9]} 11... Nxb3 {[%clk 0:02:32.4]} 12. axb3 {[%clk 0:02:11.8]}
12... O-O {[%clk 0:02:27.5]} 13. O-O {[%clk 0:02:08.2]} 13... Bg4 {[%clk
0:02:25.8]} 14. h3 {[%clk 0:02:04.1]} 14... Bh5 {[%clk 0:02:25.1]} 15. Qe3
{[%clk 0:01:51.4]} 15... Nd5 {[%clk 0:02:11.9]} 16. Nxd5 {[%clk 0:01:47.7]}
16... cxd5 {[%clk 0:02:12.8]} 17. g4 {[%clk 0:01:30.8]} 17... Bg6 {[%clk
0:02:10.5]} 18. d3 {[%clk 0:01:24.9]} 18... d4 {[%clk 0:02:10]} 19. Qe2 {[%clk
0:01:15]} 19... Qc7 {[%clk 0:02:08.4]} 20. Re1 {[%clk 0:01:14]} 20... Qc6 {[%clk
0:02:03.2]} 21. Nxd4 {[%clk 0:00:57.3]} 21... exd4 {[%clk 0:01:59.4]} 22. Qe6+
{[%clk 0:00:41.1]} 22... Kh8 {[%clk 0:01:56.7]} 23. Qxe7 {[%clk 0:00:21.8]}
23... Rae8 {[%clk 0:01:54.6]} 24. Rxa7 {[%clk 0:00:19.3]} 24... Rxe7 {[%clk
0:01:53.4]} 25. Rexe7 {[%clk 0:00:20.2]} 25... Qf3 {[%clk 0:01:51]} 26. Bh6
{[%clk 0:00:10.2]} 26... Qxf2+ {[%clk 0:01:50.2]} 27. Kh1 {[%clk 0:00:10.7]}
27... Qf1+ {[%clk 0:01:50]} 28. Kh2 {[%clk 0:00:10.7]} 28... gxh6 {[%clk
0:01:38.2]} 0-1